fUST/lending_fUST_20250713
["ID","MTS","AMOUNT","RATE_DAILY","PERIOD"]
[371701861,1752394265735,-500.0,0.00019346,2]
[371701862,1752394265745,-500.0,0.00019346,2]
[371701863,1752394265755,-161.98177811,0.00019373,2]
[371701864,1752394265765,-629.62734468,0.00019373,2]
[371701865,1752394265775,-800.0,0.00019373,2]
[371701866,1752394265785,-500.0,0.00019373,2]
[371701867,1752394265794,-500.0,0.00019373,2]
[371701868,1752394265804,-10757.49686302,0.00019383,2]
[371701869,1752394265814,-151.0,0.00019383,2]
[371701870,1752394265823,-800.0,0.00019401,2]
[371701871,1752394265834,-500.0,0.00019401,2]
[371701872,1752394265843,-500.0,0.00019401,2]
[371701873,1752394265853,-534.567117,0.00019404,2]
[371701874,1752394265863,-800.0,0.00019428,2]
[371701875,1752394265872,-360.31886297,0.00019428,2]
[371701876,1752394265881,-500.0,0.00019428,2]
[371701877,1752394265893,-151.0,0.0001945,2]
[371701878,1752394265903,-151.0,0.0001945,2]
[371701879,1752394265912,-151.0,0.0001945,2]
[371701880,1752394265922,-151.0,0.0001945,2]
[371701881,1752394265932,-151.0,0.0001945,2]
[371701882,1752394265941,-207.875769,0.0001945,2]
[371701883,1752394265951,-207.875769,0.0001945,2]
[371701884,1752394265960,-151.0,0.0001945,2]
[371701885,1752394265970,-151.0,0.0001945,2]
[371701886,1752394265980,-151.0,0.0001945,2]
[371701887,1752394265989,-500.0,0.00019452,2]
[371701888,1752394265999,-151.0,0.00019452,2]
[371701889,1752394266009,-446.042417,0.00019452,2]
[371701890,1752394266018,-446.042417,0.00019452,2]
[371701891,1752394266027,-151.0,0.00019452,2]
[371701892,1752394266036,-151.0,0.00019452,2]
[371701893,1752394266046,-470.14361108,0.00019452,2]
[371701894,1752394266055,-460.0,0.00019452,2]
[371701895,1752394266065,-618.68,0.00019452,2]
[371701896,1752394266078,-1000.01,0.00019452,2]
[371701897,1752394266087,-460.0,0.00019452,2]
[371701898,1752394266096,-460.0,0.00019452,2]
[371701899,1752394266106,-401.91689881,0.00019452,2]
[371701900,1752394266115,-715.71,0.00019452,2]
[371701901,1752394266124,-460.0,0.00019452,2]
[371701902,1752394266134,-504.95,0.00019452,2]
[371701903,1752394266143,-190.27116876,0.00019452,2]
[371701904,1752394266153,-460.0,0.00019452,2]
[371701905,1752394266162,-812.41,0.00019452,2]
[371701906,1752394266171,-154.094875,0.00019452,2]
[371701907,1752394266180,-460.0,0.00019452,2]
[371701908,1752394266190,-460.0,0.00019452,2]
[371701909,1752394266200,-1679.05,0.00019452,2]
[371701910,1752394266209,-733.36,0.00019452,2]
[371701911,1752394266219,-479.16,0.00019452,2]
[371701912,1752394266229,-584.3,0.00019452,2]
[371701913,1752394266239,-416.01177876,0.00019452,2]
[371701914,1752394266249,-506.57,0.00019452,2]
[371701915,1752394266258,-893.03,0.00019452,2]
[371701916,1752394266268,-695.2,0.00019452,2]
[371701917,1752394266278,-460.0,0.00019452,2]
[371701918,1752394266288,-693.44,0.00019452,2]
[371701919,1752394266298,-2792.31,0.00019452,2]
[371701920,1752394266308,-460.0,0.00019452,2]
[371701921,1752394266317,-923.89,0.00019452,2]
[371701922,1752394266328,-844.75,0.00019452,2]
[371701923,1752394266338,-699.1,0.00019452,2]
[371701924,1752394266347,-514.93,0.00019452,2]
[371701925,1752394266356,-460.0,0.00019452,2]
[371701926,1752394266366,-518.68,0.00019452,2]
[371701927,1752394266375,-2437.23,0.00019452,2]
[371701928,1752394266384,-705.01,0.00019452,2]
[371701929,1752394266394,-460.0,0.00019452,2]
[371701930,1752394266404,-901.04,0.00019452,2]
[371701931,1752394266414,-460.0,0.00019452,2]
[371701932,1752394266424,-151.0,0.00019452,2]
[371701933,1752394266435,-1505.6,0.00019452,2]
[371701934,1752394266445,-460.0,0.00019452,2]
[371701935,1752394266455,-2603.03,0.00019452,2]
[371701936,1752394266466,-1517.51521719,0.00019452,2]
[371701937,1752394266745,1954.01,0.00016438,2]
[371701938,1752394266815,725.45,0.00016428,3]
[371701939,1752394267065,-1954.01,0.00016712,2]
[371701940,1752394267080,-1954.01,0.00016986,2]
[371701941,1752394267089,-1450.9,0.00017798,3]
[371701942,1752394267098,-161.37660368,0.00018124,2]
[371701943,1752394267108,-151.0,0.00018561,2]
[371701944,1752394267118,-505.01,0.00018904,2]
[371701945,1752394267128,-505.01,0.00019178,2]
[371701946,1752394267137,-4774.15478281,0.00019452,2]
[371701947,1752394267148,-5734.9,0.00019452,2]
[371701948,1752394267158,-1770.54,0.00019452,2]
[371701949,1752394267168,-1012.86,0.00019452,2]
[371701950,1752394267177,-489.01,0.00019452,2]
[371701951,1752394267187,-460.0,0.00019452,2]
[371701952,1752394267196,-4310.84,0.00019452,2]
[371701953,1752394267206,-533.54,0.00019452,2]
[371701954,1752394267216,-2800.25,0.00019452,2]
[371701955,1752394267226,-862.57,0.00019452,2]
[371701956,1752394267235,-1059.69,0.00019452,2]
[371701957,1752394267245,-460.0,0.00019452,2]
[371701958,1752394267255,-684.2,0.00019452,2]
[371701959,1752394267265,-479.16,0.00019452,2]
[371701960,1752394267274,-5816.14,0.00019452,2]
[371701961,1752394267284,-1513.32,0.00019452,2]
[371701962,1752394267294,-1859.64,0.00019452,2]
[371701963,1752394267304,-3577.76,0.00019452,2]
[371701964,1752394267313,-897.76,0.00019452,2]
[371701965,1752394267323,-460.0,0.00019452,2]
[371701966,1752394267334,-1406.11,0.00019452,2]
[371701967,1752394267343,-460.0,0.00019452,2]
[371701968,1752394267353,-505.01,0.00019452,2]
[371701969,1752394267362,-800.0,0.00019455,2]
[371701970,1752394267372,-500.0,0.00019455,2]
[371701971,1752394267382,-800.0,0.00019483,2]
[371701972,1752394267391,-500.0,0.00019483,2]
[371701973,1752394267401,-151.0,0.00019502,2]
[371701974,1752394267411,-587.0,0.00019504,2]
[371701975,1752394267421,-800.0,0.0001951,2]
[371701976,1752394267431,-500.0,0.0001951,2]
[371701977,1752394267441,-336.55255679,0.00019512,2]
[371701978,1752394267450,-3000.0,0.00019512,2]
[371701979,1752394267460,-800.0,0.00019538,2]
[371701980,1752394267471,-500.0,0.00019538,2]
[371701981,1752394267480,-800.0,0.00019565,2]
[371701982,1752394267489,-500.0,0.00019565,2]
[371701983,1752394267502,-800.0,0.00019592,2]
[371701984,1752394267511,-261.26192034,0.00019592,2]
[371701985,1752394267521,-151.0,0.00019602,2]
[371701986,1752394267534,-151.0,0.00019602,2]
[371701987,1752394267544,-151.0,0.00019602,2]
[371701988,1752394267554,-203.293994,0.00019602,2]
[371701989,1752394267563,-203.293994,0.00019602,2]
[371701990,1752394267573,-153.202931,0.00019602,2]
[371701991,1752394267584,-151.0,0.00019602,2]
[371701992,1752394267593,-151.0,0.00019602,2]
[371701993,1752394267603,-151.0,0.00019602,2]
[371701994,1752394267615,-107621.86857026,0.00019602,2]
[371701995,1752394267627,-345.848633,0.00019602,2]
[371701996,1752394267636,-345.848633,0.00019602,2]
[371701997,1752394267650,-151.0,0.00019602,2]
[371701998,1752394267659,-379.823599,0.00019602,2]
[371701999,1752394267668,-379.823599,0.00019602,2]
[371702000,1752394267677,-152.770928,0.00019602,2]
[371702001,1752394267687,-207.875769,0.00019602,2]
[371702002,1752394267697,-207.875769,0.00019602,2]
[371702003,1752394267706,-151.0,0.00019602,2]
[371702004,1752394267715,-151.0,0.00019602,2]
[371702005,1752394267725,-151.0,0.00019602,2]
[371702006,1752394267734,-151.0,0.00019602,2]
[371702007,1752394267743,-151.0,0.00019602,2]
[371702008,1752394267754,-151.0,0.00019602,2]
[371702009,1752394267764,-151.0,0.00019602,2]
[371702010,1752394267774,-288.453627,0.00019602,2]
[371702011,1752394267784,-288.453633,0.00019602,2]
[371702012,1752394267794,-3058.98358494,0.00019608,2]
[371702013,1752394267803,-2009.38068283,0.00019608,2]
[371702014,1752394267813,-800.0,0.0001962,2]
[371702015,1752394267823,-800.0,0.00019647,2]
[371702016,1752394267835,-25000.0,0.00019657,2]
[371702017,1752394267844,-800.0,0.00019675,2]
[371702018,1752394267854,-168.0,0.0001969,2]
[371702019,1752394267864,-10757.49686302,0.00019693,2]
[371702020,1752394267874,-800.0,0.00019702,2]
[371702021,1752394267883,-420.6220422,0.00019726,2]
[371702022,1752394267893,-460.0,0.00019726,2]
[371702023,1752394267902,-618.68,0.00019726,2]
[371702024,1752394267912,-1000.01,0.00019726,2]
[371702025,1752394267922,-460.0,0.00019726,2]
[371702026,1752394268009,-494.15445313,0.00019726,2]
[371702027,1752394268020,-715.71,0.00019726,2]
[371702028,1752394268031,-460.0,0.00019726,2]
[371702029,1752394268042,-504.95,0.00019726,2]
[371702030,1752394268052,-460.0,0.00019726,2]
[371702031,1752394268062,-812.41,0.00019726,2]
[371702032,1752394268074,-460.0,0.00019726,2]
[371702033,1752394268086,-460.0,0.00019726,2]
[371702034,1752394268096,-1679.05,0.00019726,2]
[371702035,1752394268107,-733.36,0.00019726,2]
[371702036,1752394268117,-479.16,0.00019726,2]
[371702037,1752394268127,-584.3,0.00019726,2]
[371702038,1752394268137,-506.57,0.00019726,2]
[371702039,1752394268147,-893.03,0.00019726,2]
[371702040,1752394268158,-695.2,0.00019726,2]
[371702041,1752394268168,-460.0,0.00019726,2]
[371702042,1752394268178,-693.44,0.00019726,2]
[371702043,1752394268188,-2792.31,0.00019726,2]
[371702044,1752394268198,-460.0,0.00019726,2]
[371702045,1752394268208,-923.89,0.00019726,2]
[371702046,1752394268218,-844.75,0.00019726,2]
[371702047,1752394268227,-699.1,0.00019726,2]
[371702048,1752394268237,-514.93,0.00019726,2]
[371702049,1752394268247,-460.0,0.00019726,2]
[371702050,1752394268256,-518.68,0.00019726,2]
[371702051,1752394268265,-2437.23,0.00019726,2]
[371702052,1752394268275,-705.01,0.00019726,2]
[371702053,1752394268285,-901.04,0.00019726,2]
[371702054,1752394268295,-460.0,0.00019726,2]
[371702055,1752394268304,-460.0,0.00019726,2]
[371702056,1752394268314,-245.015584,0.00019726,2]
[371702057,1752394268323,-1505.6,0.00019726,2]
[371702058,1752394268335,-460.0,0.00019726,2]
[371702059,1752394268344,-151.0,0.00019726,2]
[371702060,1752394268354,-2603.03,0.00019726,2]
[371702061,1752394268363,-6291.67,0.00019726,2]
[371702062,1752394268372,-5734.9,0.00019726,2]
[371702063,1752394268382,-1770.54,0.00019726,2]
[371702064,1752394268391,-1012.86,0.00019726,2]
[371702065,1752394268401,-460.0,0.00019726,2]
[371702066,1752394268411,-489.01,0.00019726,2]
[371702067,1752394268421,-4310.84,0.00019726,2]
[371702068,1752394268431,-533.54,0.00019726,2]
[371702069,1752394268440,-2800.25,0.00019726,2]
[371702070,1752394268449,-862.57,0.00019726,2]
[371702071,1752394268459,-1059.69,0.00019726,2]
[371702072,1752394268469,-460.0,0.00019726,2]
[371702073,1752394268478,-684.2,0.00019726,2]
[371702074,1752394268487,-479.16,0.00019726,2]
[371702075,1752394268497,-5816.14,0.00019726,2]
[371702076,1752394268507,-1513.32,0.00019726,2]
[371702077,1752394268517,-1859.64,0.00019726,2]
[371702078,1752394268528,-3577.76,0.00019726,2]
[371702079,1752394268538,-897.76,0.00019726,2]
[371702080,1752394268548,-460.0,0.00019726,2]
[371702081,1752394268558,-1406.11,0.00019726,2]
[371702082,1752394268567,-460.0,0.00019726,2]
[371702083,1752394268577,-505.01,0.00019726,2]
[371702084,1752394268587,-800.0,0.00019729,2]
[371702085,1752394268596,-168.0,0.00019733,2]
[371702086,1752394268606,-800.0,0.00019757,2]
[371702087,1752394268618,-441.5174371,0.00019767,2]
[371702088,1752394268628,-2000.0,0.00019767,2]
[371702089,1752394268639,-817.0,0.00019784,2]
[371702090,1752394268648,-202.73553631,0.00019799,2]
[371702091,1752394268658,-151.0,0.000198,2]
[371702092,1752394268668,-151.0,0.000198,2]
[371702093,1752394268678,-446.042417,0.000198,2]
[371702094,1752394268687,-446.042417,0.000198,2]
[371702095,1752394268697,-151.0,0.000198,2]
[371702096,1752394268706,-151.0,0.000198,2]
[371702097,1752394268716,-295.239615,0.000198,2]
[371702098,1752394268725,-295.239615,0.000198,2]
[371702099,1752394268735,-151.0,0.000198,2]
[371702100,1752394268744,-203.293994,0.000198,2]
[371702101,1752394268754,-203.293994,0.000198,2]
[371702102,1752394268764,-151.0,0.000198,2]
[371702103,1752394268774,-151.48433,0.000198,2]
[371702104,1752394268783,-151.0,0.000198,2]
[371702105,1752394268793,-151.0,0.000198,2]
[371702106,1752394268803,-151.0,0.000198,2]
[371702107,1752394268813,-151.0,0.000198,2]
[371702108,1752394268823,-151.0,0.000198,2]
[371702109,1752394268834,-151.0,0.000198,2]
[371702110,1752394268844,-345.848633,0.000198,2]
[371702111,1752394268854,-345.848633,0.000198,2]
[371702112,1752394268863,-151.0,0.000198,2]
[371702113,1752394268874,-207.663682,0.000198,2]
[371702114,1752394268884,-151.0,0.000198,2]
[371702115,1752394268894,-151.0,0.000198,2]
[371702116,1752394268903,-151.0,0.000198,2]
[371702117,1752394268913,-379.823599,0.000198,2]
[371702118,1752394268923,-379.823599,0.000198,2]
[371702119,1752394268932,-207.875769,0.000198,2]
[371702120,1752394268941,-207.875769,0.000198,2]
[371702121,1752394268951,-151.0,0.000198,2]
[371702122,1752394268961,-151.0,0.000198,2]
[371702123,1752394268971,-151.0,0.000198,2]
[371702124,1752394268980,-151.0,0.000198,2]
[371702125,1752394268990,-151.0,0.000198,2]
[371702126,1752394268999,-151.0,0.000198,2]
[371702127,1752394269009,-151.0,0.000198,2]
[371702128,1752394269019,-887081.34316461,0.000198,2]
[371702129,1752394269029,-421.81526163,0.000198,2]
[371702130,1752394269039,-385.0,0.00019835,2]
[371702131,1752394269049,-168.0,0.00019885,2]
[371702132,1752394269059,-151.0,0.00019892,2]
[371702133,1752394269070,-164.43,0.00019911,2]
[371702134,1752394269084,-215.0738,0.0001993,2]
[371702135,1752394269093,-168.0,0.00019935,2]
[371702136,1752394269103,-1800.0,0.00019968,2]
[371702137,1752394269113,-151.0,0.00019989,2]
[371702138,1752394269123,-240616.29233108,0.00019989,2]
[371702139,1752394269133,-151.0,0.00019989,2]
[371702140,1752394269143,-151.0,0.00019989,2]
[371702141,1752394269154,-446.042417,0.00019989,2]
[371702142,1752394269163,-446.042417,0.00019989,2]
[371702143,1752394269173,-151.0,0.00019989,2]
[371702144,1752394269183,-151.0,0.00019989,2]
[371702145,1752394269193,-151.0,0.00019989,2]
[371702146,1752394269204,-295.239615,0.00019989,2]
[371702147,1752394269214,-295.239615,0.00019989,2]
[371702148,1752394269225,-151.0,0.00019989,2]
[371702149,1752394269236,-203.293994,0.00019989,2]
[371702150,1752394269246,-203.293994,0.00019989,2]
[371702151,1752394269329,-151.0,0.00019989,2]
[371702152,1752394269341,-151.0,0.00019989,2]
[371702153,1752394269351,-151.0,0.00019989,2]
[371702154,1752394269361,-151.0,0.00019989,2]
[371702155,1752394269371,-151.0,0.00019989,2]
[371702156,1752394269381,-345.848633,0.00019989,2]
[371702157,1752394269390,-345.848633,0.00019989,2]
[371702158,1752394269400,-151.0,0.00019989,2]
[371702159,1752394269410,-151.0,0.00019989,2]
[371702160,1752394269419,-151.0,0.00019989,2]
[371702161,1752394269429,-379.823599,0.00019989,2]
[371702162,1752394269438,-379.823599,0.00019989,2]
[371702163,1752394269448,-207.875769,0.00019989,2]
[371702164,1752394269457,-207.875769,0.00019989,2]
[371702165,1752394269467,-151.0,0.00019989,2]
[371702166,1752394269477,-151.0,0.00019989,2]
[371702167,1752394269487,-151.0,0.00019989,2]
[371702168,1752394269498,-151.0,0.00019989,2]
[371702169,1752394269508,-287.257331,0.00019989,2]
[371702170,1752394269517,-151.0,0.00019989,2]
[371702171,1752394269528,-151.0,0.00019989,2]
[371702172,1752394269539,-168.0,0.00019994,2]
[371702173,1752394269550,-516.0,0.0002,8]
[371702174,1752394269561,-11635.1705481,0.0002,2]
[371702175,1752394269571,-1632.0,0.0002,2]
[371702176,1752394269580,-460.0,0.0002,2]
[371702177,1752394269593,-618.68,0.0002,2]
[371702178,1752394269603,-1000.01,0.0002,2]
[371702179,1752394269612,-460.0,0.0002,2]
[371702180,1752394269622,-715.71,0.0002,2]
[371702181,1752394269631,-460.0,0.0002,2]
[371702182,1752394269641,-504.95,0.0002,2]
[371702183,1752394269651,-460.0,0.0002,2]
[371702184,1752394269661,-812.41,0.0002,2]
[371702185,1752394269671,-460.0,0.0002,2]
[371702186,1752394269682,-460.0,0.0002,2]
[371702187,1752394269692,-1679.05,0.0002,2]
[371702188,1752394269702,-733.36,0.0002,2]
[371702189,1752394269712,-479.16,0.0002,2]
[371702190,1752394269722,-584.3,0.0002,2]
[371702191,1752394269733,-506.57,0.0002,2]
[371702192,1752394269743,-893.03,0.0002,2]
[371702193,1752394269753,-695.2,0.0002,2]
[371702194,1752394269763,-593.59,0.0002,2]
[371702195,1752394269772,-693.44,0.0002,2]
[371702196,1752394269784,-2792.31,0.0002,2]
[371702197,1752394269804,-460.0,0.0002,2]
[371702198,1752394269815,-923.89,0.0002,2]
[371702199,1752394269827,-844.75,0.0002,2]
[371702200,1752394269836,-699.1,0.0002,2]
[371702201,1752394269846,-514.93,0.0002,2]
[371702202,1752394269855,-460.0,0.0002,2]
[371702203,1752394269866,-518.68,0.0002,2]
[371702204,1752394269877,-2437.23,0.0002,2]
[371702205,1752394269887,-705.01,0.0002,2]
[371702206,1752394269898,-901.04,0.0002,2]
[371702207,1752394269908,-460.0,0.0002,2]
[371702208,1752394269917,-460.0,0.0002,2]
[371702209,1752394269927,-1505.6,0.0002,2]
[371702210,1752394269947,-432.39226932,0.0002,2]
[371702211,1752394269963,-2603.03,0.0002,2]
[371702212,1752394269981,-6291.67,0.0002,2]
[371702213,1752394270000,-5734.9,0.0002,2]
[371702214,1752394270016,-1770.54,0.0002,2]
[371702215,1752394270034,-1012.86,0.0002,2]
[371702216,1752394270052,-489.01,0.0002,2]
[371702217,1752394270070,-4310.84,0.0002,2]
[371702218,1752394270091,-533.54,0.0002,2]
[371702219,1752394270110,-2800.25,0.0002,2]
[371702220,1752394270129,-862.57,0.0002,2]
[371702221,1752394270145,-1059.69,0.0002,2]
[371702222,1752394270163,-418.99887932,0.0002,2]
[371702223,1752394270179,-684.2,0.0002,2]
[371702224,1752394270193,-479.16,0.0002,2]
[371702225,1752394270207,-5816.14,0.0002,2]
[371702226,1752394270221,-1513.32,0.0002,2]
[371702227,1752394270237,-1859.64,0.0002,2]
[371702228,1752394270252,-3577.76,0.0002,2]
[371702229,1752394270268,-897.76,0.0002,2]
[371702230,1752394270283,-460.0,0.0002,2]
[371702231,1752394270299,-1406.11,0.0002,2]
[371702232,1752394270313,-303.42773306,0.0002,2]
[371702233,1752394270328,-460.0,0.0002,2]
[371702234,1752394270343,-505.01,0.0002,2]
[371702235,1752394270358,-10757.49686302,0.00020003,2]
[371702236,1752394270373,-476.77120229,0.0002006,2]
[371702237,1752394270388,-168.0,0.00020095,2]
[371702238,1752394270402,-12598.31844336,0.000201,3]
[371702239,1752394270418,-160.0,0.000201,3]
[371702240,1752394270431,-214.29528141,0.000201,3]
[371702241,1752394270441,-836.956561,0.000201,3]
[371702242,1752394270451,-168.0,0.00020105,2]
[371702243,1752394270460,-151.0,0.00020107,2]
[371702244,1752394270471,-151.0,0.00020157,2]
[371702245,1752394270481,-151.0,0.00020165,2]
[371702246,1752394270491,-487.77306,0.00020187,2]
[371702247,1752394270501,-25000.0,0.00020205,2]
[371702248,1752394270511,-168.0,0.00020207,2]
[371702249,1752394270521,-168.0,0.00020256,2]
[371702250,1752394270531,-460.0,0.00020273,2]
[371702251,1752394270540,-618.68,0.00020273,2]
[371702252,1752394270550,-1000.01,0.00020273,2]
[371702253,1752394270561,-460.0,0.00020273,2]
[371702254,1752394270570,-715.71,0.00020273,2]
[371702255,1752394270580,-460.0,0.00020273,2]
[371702256,1752394270590,-504.95,0.00020273,2]
[371702257,1752394270600,-812.41,0.00020273,2]
[371702258,1752394270610,-460.0,0.00020273,2]
[371702259,1752394270620,-460.0,0.00020273,2]
[371702260,1752394270633,-1679.05,0.00020273,2]
[371702261,1752394270643,-733.36,0.00020273,2]
[371702262,1752394270653,-479.16,0.00020273,2]
[371702263,1752394270662,-584.3,0.00020273,2]
[371702264,1752394270672,-506.57,0.00020273,2]
[371702265,1752394270682,-893.03,0.00020273,2]
[371702266,1752394270829,-695.2,0.00020273,2]
[371702267,1752394270905,-693.44,0.00020273,2]
[371702268,1752394270918,-2792.31,0.00020273,2]
[371702269,1752394270928,-460.0,0.00020273,2]
[371702270,1752394270938,-923.89,0.00020273,2]
[371702271,1752394270948,-844.75,0.00020273,2]
[371702272,1752394270958,-699.1,0.00020273,2]
[371702273,1752394270968,-514.93,0.00020273,2]
[371702274,1752394270977,-518.68,0.00020273,2]
[371702275,1752394270987,-2437.23,0.00020273,2]
[371702276,1752394270997,-705.01,0.00020273,2]
[371702277,1752394271007,-901.04,0.00020273,2]
[371702278,1752394271017,-460.0,0.00020273,2]
[371702279,1752394271029,-460.0,0.00020273,2]
[371702280,1752394271038,-1505.6,0.00020273,2]
[371702281,1752394271048,-2603.03,0.00020273,2]
[371702282,1752394271058,-6291.67,0.00020273,2]
[371702283,1752394271068,-5734.9,0.00020273,2]
[371702284,1752394271081,-1770.54,0.00020273,2]
[371702285,1752394271091,-1012.86,0.00020273,2]
[371702286,1752394271101,-489.01,0.00020273,2]
[371702287,1752394271111,-4310.84,0.00020273,2]
[371702288,1752394271121,-533.54,0.00020273,2]
[371702289,1752394271131,-2800.25,0.00020273,2]
[371702290,1752394271140,-862.57,0.00020273,2]
[371702291,1752394271152,-1059.69,0.00020273,2]
[371702292,1752394271163,-684.2,0.00020273,2]
[371702293,1752394271174,-479.16,0.00020273,2]
[371702294,1752394271184,-5816.14,0.00020273,2]
[371702295,1752394271194,-1513.32,0.00020273,2]
[371702296,1752394271204,-1859.64,0.00020273,2]
[371702297,1752394271214,-3577.76,0.00020273,2]
[371702298,1752394271224,-897.76,0.00020273,2]
[371702299,1752394271234,-460.0,0.00020273,2]
[371702300,1752394271244,-1406.11,0.00020273,2]
[371702301,1752394271253,-460.0,0.00020273,2]
[371702302,1752394271263,-168.0,0.00020309,2]
[371702303,1752394271273,-10757.49686302,0.00020314,3]
[371702304,1752394271282,-2500.0,0.00020315,2]
[371702305,1752394271291,-392.0,0.00020376,2]
[371702306,1752394271301,-151.0,0.00020383,2]
[371702307,1752394271311,-31583.74791279,0.000204,2]
[371702308,1752394271320,-151.0,0.000204,2]
[371702309,1752394271330,-151.0,0.000204,2]
[371702310,1752394271340,-225.536147,0.000204,2]
[371702311,1752394271350,-151.0,0.000204,2]
[371702312,1752394271359,-5091.95,0.000204,2]
[371702313,1752394271369,-31732.67,0.000204,2]
[371702314,1752394271378,-1450.02,0.000204,2]
[371702315,1752394271389,-168.0,0.00020434,2]
[371702316,1752394271400,-154.849508,0.00020483,2]
[371702317,1752394271411,-1000.0,0.00020488,2]
[371702318,1752394271421,-836.956561,0.0002049,2]
[371702319,1752394271432,-12598.31844336,0.0002049,2]
[371702320,1752394271441,-168.0,0.00020495,2]
[371702321,1752394271451,-151.0,0.00020522,2]
[371702322,1752394271461,-151.0,0.00020522,2]
[371702323,1752394271473,-151.0,0.00020522,2]
[371702324,1752394271483,-168.0,0.00020533,2]
[371702325,1752394271493,-159.399884,0.00020547,2]
[371702326,1752394271504,-203.293994,0.00020547,2]
[371702327,1752394271515,-203.293994,0.00020547,2]
[371702328,1752394271524,-151.0,0.00020547,2]
[371702329,1752394271535,-151.0,0.00020547,2]
[371702330,1752394271544,-151.0,0.00020547,2]
[371702331,1752394271555,-151.0,0.00020547,2]
[371702332,1752394271565,-151.0,0.00020547,2]
[371702333,1752394271575,-345.848633,0.00020547,2]
[371702334,1752394271586,-345.848633,0.00020547,2]
[371702335,1752394271595,-151.0,0.00020547,2]
[371702336,1752394271605,-151.0,0.00020547,2]
[371702337,1752394271615,-379.823599,0.00020547,2]
[371702338,1752394271625,-379.823599,0.00020547,2]
[371702339,1752394271635,-460.0,0.00020547,2]
[371702340,1752394271647,-618.68,0.00020547,2]
[371702341,1752394271658,-207.875769,0.00020547,2]
[371702342,1752394271669,-207.875769,0.00020547,2]
[371702343,1752394271679,-151.0,0.00020547,2]
[371702344,1752394271687,-1000.01,0.00020547,2]
[371702345,1752394271697,-151.0,0.00020547,2]
[371702346,1752394271707,-460.0,0.00020547,2]
[371702347,1752394271717,-151.0,0.00020547,2]
[371702348,1752394271726,-715.71,0.00020547,2]
[371702349,1752394271736,-460.0,0.00020547,2]
[371702350,1752394271746,-504.95,0.00020547,2]
[371702351,1752394271756,-812.41,0.00020547,2]
[371702352,1752394271766,-460.0,0.00020547,2]
[371702353,1752394271776,-460.0,0.00020547,2]
[371702354,1752394271785,-1679.05,0.00020547,2]
[371702355,1752394271795,-733.36,0.00020547,2]
[371702356,1752394271804,-479.16,0.00020547,2]
[371702357,1752394271813,-584.3,0.00020547,2]
[371702358,1752394271825,-506.57,0.00020547,2]
[371702359,1752394271835,-893.03,0.00020547,2]
[371702360,1752394271845,-695.2,0.00020547,2]